{"text_format":"1","workbook":"xlsx","n_sheets":1,"sheets":["vraag Kabinet2"],"not_rendered":{"charts":0,"images":0,"macros":0,"external_links":0,"defined_names":0,"comments":0,"pivot_tables":0},"unopened":[],"bounds":{"document_bytes":16777216,"sheet_cells":100000,"rows_first":2000,"rows_last":500,"rows_between":2000,"halvings":0,"cell_chars":16384,"cell_head_chars":4096},"cells_cut":0,"cells_raw":0,"read":"whole","date_system":"1900"}

{"sheet":"vraag Kabinet2","index":0,"n_rows":22,"n_cols":12,"rows_kept":22,"cut":false,"hidden":false,"merged":[]}
[null,"incubatie"]
["Aantal ","Bedrijf","SOC","Provincie","Plaats","Activiteit","Datum oprichting","Datum IC","Commitment","Lening en/of kapitaal","Uitbetaald bedrag","Nog openstaand bedrag"]
[1,"AtSharp","iMinds","Antwerpen","Herenthout","ORCA-service (= opportunity realtime context awareness)","2010-02-15","2013-06-25",50000,"Lening",50000,{"$f":"I3-K3","v":0}]
[1,"Axsmate","iMinds","Oost-Vlaanderen","Wetteren","Software ontwikkelen om op basis van mobiele telefoons en cloud-gebaseerde diensten gebruikstoegang op afstand te maken","2012-11-09","2012-11-26",50000,"Lening",50000,{"$f":"I4-K4","v":0}]
[1,"Exia (Blindspot)","iMinds","Brussel","Etterbeek","Ontwikkeling van sensor-systemen voor het vermijden van blindehoek-ongevallen","2013-10-04","2013-01-09",50000,"Kapitaal",50000,0]
[1,"Carambla","iMinds","Oost-Vlaanderen","Gent","Online marktplaats waar chauffeurs op zoek naar een parkeerplaats in contact gebracht worden met mensen of organisaties die vrije plaatsen 'te huur' aanbieden","2011-10-05","2012-05-08",50000,"Lening",50000,0]
[1,"Graphine","iMinds","Oost-Vlaanderen","Gent","Ontwikkeling van geavanceerde grafische middleware voor de videogame- en 3D-visualisatie-industrie","2013-04-12","2012-11-26",50000,"Kapitaal",50000,0]
[1,"Ontoforce","iMinds","Oost-Vlaanderen","Hasselt","Technologiebedrijf die zowel informatiedoorstroming als informatiebeheer (‘big data’) in bedrijven en organisaties wil verbeteren door gebruik te maken van semantische technologie","2011-05-05","2012-05-08",50000,"Kapitaal",50000,0]
[1,"SmallTownHeroes","iMinds","Oost-Vlaanderen","Gent","Interactieve applicaties koppelen aan televisieprogramma's","2012-02-23","2012-05-05",50000,"Lening",50000,0]
[1,"TagTagCity","iMinds","Vlaams-Brabant","Etterbeek","Winkeleigenaars en culturele instellingen kunnen op hun platform een goedkope mobiele website creëren","2012-03-02","2013-05-13",50000,"Kapitaal",50000,0]
[1,"Track4C","iMinds","Antwerpen","Aartselaar","Producten en software voor container-tracking","2012-03-13","2012-01-25",50000,"Kapitaal",50000,0]
[1,"Bloom Technologies","Imec","USA","San Francisco","Ontwikkelt en commercialiseert draagbare meettoestellen voor de opvolging van moeder en kind tijdens en na de zwangerschap"," NB","2014-02-25",50000,"Lening",50000,0]
[1,"Enprove","iMinds","Oost-Vlaanderen","Gent","Ondersteuning bij de implementatie van energiemanagementsystemen of van de ISO 50001-norm","2010-06-18","2014-04-03",50000,"Lening",50000,0]
[1,"Neoscores","iMinds","Antwerpen","Kontich","Webapplicatie waar muzikanten digitale partituren kunnen aankopen en gebruiken, op dit op een makkelijke en veilige manier","2013-07-01","2014-04-03",50000,"Lening",50000,0]
[1,"x","iMinds","Limburg","Hasselt","Ontwikkeling software \"fastfinder\" dat de resultaten van medische labotesten automatisch kan uitlezen ","2014-04-30","2014-09-12",50000,"Lening",0,50000]
[1,"x","iMinds","Oost-Vlaanderen","nog op te richten","Modular Benchtop Imaging ","nog op te richten","2014-02-26",50000,"Lening",0,50000]
[1,"x","iMinds","Oost-Vlaanderen","Gent","Ontwikkeling van een platform  voor interactieve online training en opleiding over data analyse ","2013-11-19","2014-02-26",50000,"Lening",0,50000]
[1,"x","iMinds","Oost-Vlaanderen","nog op te richten","Ontwikkeling van een instrument dat de ware reacties van het brein zonder ruis in kaart brengt. MindSpeller ontwikkelde hiervoor zowel een Brain Computer Interface als een applicatie die het semantisch netwerk in kaart brengt","nog op te richten","2014-02-26",50000,"Lening",0,50000]
[1,"x","iMinds","Oost-Vlaanderen","Gent","Software dat gebruikers toelaat hun contacten perfect te integreren en te synchroniseren","2012-10-09","2014-07-15",50000,"Lening",0,50000]
[1,"x","iMinds","Antwerpen","Antwerpen","Ze zijn actief op het kruisdomein van (social) media en recht, aangezien ze een tool ontwikkeld hebben die toelaat om snel licentierechten op media (in eerste instantie foto's, later ook video en blog o.a.) te krijgen om inbreuken te voorkomen.","2013-11-12","2014-10-08",50000,"Lening",0,50000]
[1,"Camargus","iMinds","Limburg","Diepenbeek","Camera virtualisatie-technologie ","2011-11-17","2011-12-20",50000,"Failliet",50000,0]
[{"$f":"SUM(A3:A21)","v":19},null,null,null,null,null,null,null,{"$f":"SUM(I3:I21)","v":950000},null,{"$f":"SUM(K3:K21)","v":650000},300000]